[Event "Titled Tuesday Blitz February 01 B 2022"]
[White "Pakleza, Zbigniew"]
[Black "Camacho Collados, Jose"]
[WhiteFideId "1119290"]
[BlackFideId "2265427"]
[WhiteElo "2467"]
[BlackElo "2351"]
[Result "1-0"]
[Round "08"]
[TimeControl "180+1"]
[Date "2022.02.01"]
[WhiteClock "0:00:06"]
[BlackClock "0:00:02"]

1. d4 {[%clk 0:03:00]}  d5 {[%clk 0:02:59]} 2. Bf4 {[%clk 0:03:00]}  c5 {[%clk 0:02:57]} 3. c3 {[%clk 0:03:00]}  e6 {[%clk 0:02:56]} 4. e3 {[%clk 0:03:00]}  Qb6 {[%clk 0:02:56]} 5. Qb3 {[%clk 0:03:00]}  Qxb3 {[%clk 0:02:55]} 6. axb3 {[%clk 0:02:57]}  Nc6 {[%clk 0:02:52]} 7. Nd2 {[%clk 0:02:55]}  Nf6 {[%clk 0:02:51]} 8. Ngf3 {[%clk 0:02:55]}  Be7 {[%clk 0:02:51]} 9. h3 {[%clk 0:02:54]}  O-O {[%clk 0:02:52]} 10. Be2 {[%clk 0:02:54]}  h6 {[%clk 0:02:51]} 11. O-O {[%clk 0:02:54]}  Bd7 {[%clk 0:02:51]} 12. Rfe1 {[%clk 0:02:54]}  Rfc8 {[%clk 0:02:52]} 13. Bg3 {[%clk 0:02:51]}  a6 {[%clk 0:02:49]} 14. Kf1 {[%clk 0:02:48]}  b5 {[%clk 0:02:40]} 15. dxc5 {[%clk 0:02:44]}  Bxc5 {[%clk 0:02:41]} 16. b4 {[%clk 0:02:45]}  Bb6 {[%clk 0:02:38]} 17. Nb3 {[%clk 0:02:44]}  Ne4 {[%clk 0:02:28]} 18. Bh2 {[%clk 0:02:43]}  f6 {[%clk 0:02:18]} 19. Red1 {[%clk 0:02:38]}  Kf7 {[%clk 0:02:17]} 20. Ne1 {[%clk 0:02:28]}  Ne5 {[%clk 0:02:14]} 21. Bxe5 {[%clk 0:02:00]}  fxe5 {[%clk 0:02:15]} 22. Nd3 {[%clk 0:02:01]}  Kf6 {[%clk 0:02:10]} 23. f3 {[%clk 0:01:54]}  Ng3+ {[%clk 0:02:09]} 24. Kf2 {[%clk 0:01:54]}  Nf5 {[%clk 0:02:09]} 25. Ndc5 {[%clk 0:01:55]}  Be8 {[%clk 0:02:01]} 26. g4 {[%clk 0:01:45]}  Nd6 {[%clk 0:02:00]} 27. Nxa6 {[%clk 0:01:36]}  Nc4 {[%clk 0:01:37]} 28. Bxc4 {[%clk 0:01:13]}  bxc4 {[%clk 0:01:38]} 29. Nd2 {[%clk 0:00:59]}  Ra7 {[%clk 0:01:19]} 30. Ra3 {[%clk 0:00:47]}  Bb5 {[%clk 0:01:08]} 31. Rda1 {[%clk 0:00:43]}  d4 {[%clk 0:00:32]} 32. Ne4+ {[%clk 0:00:41]}  Ke7 {[%clk 0:00:28]} 33. Nac5 {[%clk 0:00:36]}  dxe3+ {[%clk 0:00:21]} 34. Kxe3 {[%clk 0:00:30]}  Rd7 {[%clk 0:00:17]} 35. Ke2 {[%clk 0:00:19]}  Rd5 {[%clk 0:00:16]} 36. Ra7+ {[%clk 0:00:13]}  Bxa7 {[%clk 0:00:16]} 37. Rxa7+ {[%clk 0:00:14]}  Bd7 {[%clk 0:00:13]} 38. g5 {[%clk 0:00:07]}  hxg5 {[%clk 0:00:11]} 39. Nxg5 {[%clk 0:00:08]}  Rcxc5 {[%clk 0:00:07]} 40. bxc5 {[%clk 0:00:07]}  Rxc5 {[%clk 0:00:07]} 41. Ne4 {[%clk 0:00:06]}  Rb5 {[%clk 0:00:07]} 42. Ke3 {[%clk 0:00:07]}  Kd8 {[%clk 0:00:02]} 43. Nd6 {[%clk 0:00:06]}  Rxb2 {[%clk 0:00:02]} 44. Nf7+ {[%clk 0:00:07]}  Ke8 {[%clk 0:00:02]} 45. Nxe5 {[%clk 0:00:08]}  Bb5 {[%clk 0:00:01]} 46. Rxg7 {[%clk 0:00:07]}  Rb3 {[%clk 0:00:01]} 47. Kd4 {[%clk 0:00:07]}  Rb1 {[%clk 0:00:02]} 48. Kc5 {[%clk 0:00:06]}  Ba4 {[%clk 0:00:01]} 49. Kd6 {[%clk 0:00:06]}  Rb5 {[%clk 0:00:02]} 50. Rg8# {[%clk 0:00:06]} 1-0


[Site "https://www.chess.com"]

[Event "Titled Tuesday Blitz February 01 B 2022"]
[White "Pranav, V"]
[Black "Wagner, Dennis"]
[WhiteFideId "25060783"]
[BlackFideId "24650684"]
[WhiteElo "2349"]
[BlackElo "2355"]
[Result "1-0"]
[Round "08"]
[TimeControl "180+1"]
[Date "2022.02.01"]
[WhiteClock "0:00:24"]
[BlackClock "0:00:03"]

1. e4 {[%clk 0:02:33]}  e5 {[%clk 0:02:59]} 2. Nf3 {[%clk 0:02:32]}  Nc6 {[%clk 0:03:00]} 3. Bb5 {[%clk 0:02:30]}  a6 {[%clk 0:03:00]} 4. Ba4 {[%clk 0:02:28]}  Nf6 {[%clk 0:03:01]} 5. O-O {[%clk 0:02:28]}  Be7 {[%clk 0:03:01]} 6. d3 {[%clk 0:02:28]}  d6 {[%clk 0:02:59]} 7. c4 {[%clk 0:02:25]}  O-O {[%clk 0:02:56]} 8. Nc3 {[%clk 0:02:23]}  Bg4 {[%clk 0:02:53]} 9. h3 {[%clk 0:02:23]}  Bxf3 {[%clk 0:02:52]} 10. Qxf3 {[%clk 0:02:23]}  Nd4 {[%clk 0:02:53]} 11. Qd1 {[%clk 0:02:23]}  Nd7 {[%clk 0:02:33]} 12. Ne2 {[%clk 0:02:09]}  Nxe2+ {[%clk 0:02:30]} 13. Qxe2 {[%clk 0:02:09]}  Nc5 {[%clk 0:02:30]} 14. Bd1 {[%clk 0:01:55]}  Bg5 {[%clk 0:02:30]} 15. Be3 {[%clk 0:01:52]}  Ne6 {[%clk 0:02:27]} 16. Qg4 {[%clk 0:01:30]}  g6 {[%clk 0:02:17]} 17. g3 {[%clk 0:01:25]}  h5 {[%clk 0:02:08]} 18. Qf3 {[%clk 0:01:21]}  Kg7 {[%clk 0:02:04]} 19. h4 {[%clk 0:01:16]}  Bh6 {[%clk 0:01:57]} 20. b4 {[%clk 0:01:07]}  a5 {[%clk 0:01:56]} 21. bxa5 {[%clk 0:01:07]}  Rxa5 {[%clk 0:01:53]} 22. a4 {[%clk 0:01:07]}  b6 {[%clk 0:01:52]} 23. Rb1 {[%clk 0:01:02]}  Bxe3 {[%clk 0:01:40]} 24. fxe3 {[%clk 0:01:01]}  f5 {[%clk 0:01:40]} 25. exf5 {[%clk 0:01:00]}  Rxf5 {[%clk 0:01:41]} 26. Qg2 {[%clk 0:00:58]}  Rxf1+ {[%clk 0:01:40]} 27. Qxf1 {[%clk 0:00:57]}  Qf6 {[%clk 0:01:39]} 28. Qe2 {[%clk 0:00:55]}  e4 {[%clk 0:01:18]} 29. d4 {[%clk 0:00:49]}  g5 {[%clk 0:00:54]} 30. d5 {[%clk 0:00:39]}  Nc5 {[%clk 0:00:45]} 31. Qxh5 {[%clk 0:00:38]}  gxh4 {[%clk 0:00:15]} 32. Be2 {[%clk 0:00:37]}  hxg3 {[%clk 0:00:11]} 33. Rf1 {[%clk 0:00:37]}  Qg6 {[%clk 0:00:11]} 34. Qh4 {[%clk 0:00:37]}  Ra8 {[%clk 0:00:04]} 35. Bh5 {[%clk 0:00:38]}  Qh6 {[%clk 0:00:02]} 36. Rf4 {[%clk 0:00:29]}  Kh8 {[%clk 0:00:02]} 37. Qe7 {[%clk 0:00:25]}  Qxh5 {[%clk 0:00:02]} 38. Rh4 {[%clk 0:00:25]}  Qxh4 {[%clk 0:00:03]} 39. Qxh4+ {[%clk 0:00:26]}  Kg7 {[%clk 0:00:04]} 40. Qe7+ {[%clk 0:00:26]}  Kg6 {[%clk 0:00:04]} 41. Qxc7 {[%clk 0:00:26]}  Rxa4 {[%clk 0:00:04]} 42. Qxd6+ {[%clk 0:00:26]}  Kf5 {[%clk 0:00:04]} 43. Qf4+ {[%clk 0:00:26]}  Kg6 {[%clk 0:00:04]} 44. Qxg3+ {[%clk 0:00:27]}  Kf7 {[%clk 0:00:04]} 45. Qc7+ {[%clk 0:00:27]}  Kf8 {[%clk 0:00:04]} 46. Qxb6 {[%clk 0:00:22]}  Rxc4 {[%clk 0:00:04]} 47. Qd8+ {[%clk 0:00:23]}  Kf7 {[%clk 0:00:04]} 48. d6 {[%clk 0:00:24]}  Ne6 {[%clk 0:00:03]} 49. Qe7+ {[%clk 0:00:24]} 1-0


[Site "https://www.chess.com"]

[Event "Titled Tuesday Blitz February 01 B 2022"]
[White "Ramirez, Alejandro"]
[Black "Musovic, Armin"]
[WhiteFideId "6500617"]
[BlackFideId "939935"]
[WhiteElo "2694"]
[BlackElo "2250"]
[Result "1-0"]
[Round "08"]
[TimeControl "180+1"]
[Date "2022.02.01"]
[WhiteClock "0:00:25"]
[BlackClock "0:00:03"]

1. Nf3 {[%clk 0:03:00]}  a6 {[%clk 0:02:58]} 2. c4 {[%clk 0:03:01]}  e6 {[%clk 0:02:57]} 3. e4 {[%clk 0:03:02]}  c5 {[%clk 0:02:55]} 4. d4 {[%clk 0:03:02]}  cxd4 {[%clk 0:02:54]} 5. Nxd4 {[%clk 0:03:02]}  Nc6 {[%clk 0:02:48]} 6. Nxc6 {[%clk 0:02:59]}  bxc6 {[%clk 0:02:49]} 7. Bd3 {[%clk 0:03:00]}  Nf6 {[%clk 0:02:43]} 8. O-O {[%clk 0:02:59]}  e5 {[%clk 0:02:42]} 9. Be3 {[%clk 0:02:53]}  h5 {[%clk 0:02:39]} 10. h3 {[%clk 0:02:53]}  Rb8 {[%clk 0:02:38]} 11. b3 {[%clk 0:02:53]}  d5 {[%clk 0:02:34]} 12. cxd5 {[%clk 0:02:47]}  cxd5 {[%clk 0:02:35]} 13. exd5 {[%clk 0:02:47]}  Nxd5 {[%clk 0:02:30]} 14. Bd2 {[%clk 0:02:40]}  Bc5 {[%clk 0:02:19]} 15. Nc3 {[%clk 0:02:39]}  Bd4 {[%clk 0:02:10]} 16. Rc1 {[%clk 0:02:38]}  Be6 {[%clk 0:02:04]} 17. Bxa6 {[%clk 0:02:28]}  g5 {[%clk 0:02:01]} 18. Ne4 {[%clk 0:01:58]}  g4 {[%clk 0:01:44]} 19. h4 {[%clk 0:01:59]}  g3 {[%clk 0:01:32]} 20. Bg5 {[%clk 0:01:58]}  f6 {[%clk 0:01:24]} 21. Bd2 {[%clk 0:01:58]}  gxf2+ {[%clk 0:01:11]} 22. Nxf2 {[%clk 0:01:57]}  f5 {[%clk 0:01:07]} 23. Bg5 {[%clk 0:01:56]}  Qb6 {[%clk 0:01:08]} 24. Bc4 {[%clk 0:01:47]}  f4 {[%clk 0:00:49]} 25. Qd3 {[%clk 0:01:29]}  Ne7 {[%clk 0:00:34]} 26. Bxe6 {[%clk 0:01:09]}  Qxe6 {[%clk 0:00:34]} 27. Kh2 {[%clk 0:01:10]}  Rd8 {[%clk 0:00:21]} 28. Qc4 {[%clk 0:00:46]}  Qxc4 {[%clk 0:00:19]} 29. Rxc4 {[%clk 0:00:46]}  Rd7 {[%clk 0:00:17]} 30. Ne4 {[%clk 0:00:46]}  Kf7 {[%clk 0:00:16]} 31. g3 {[%clk 0:00:39]}  Ng6 {[%clk 0:00:07]} 32. gxf4 {[%clk 0:00:40]}  exf4 {[%clk 0:00:07]} 33. Bxf4 {[%clk 0:00:36]}  Kg7 {[%clk 0:00:08]} 34. Bg3 {[%clk 0:00:35]}  Re8 {[%clk 0:00:07]} 35. Nd6 {[%clk 0:00:33]}  Re2+ {[%clk 0:00:07]} 36. Kh3 {[%clk 0:00:34]}  Re3 {[%clk 0:00:07]} 37. Nf5+ {[%clk 0:00:34]}  Kh7 {[%clk 0:00:07]} 38. Rxd4 {[%clk 0:00:27]}  Rxg3+ {[%clk 0:00:07]} 39. Kxg3 {[%clk 0:00:27]}  Rf7 {[%clk 0:00:07]} 40. Rf3 {[%clk 0:00:24]}  Ne5 {[%clk 0:00:07]} 41. Rdf4 {[%clk 0:00:24]}  Nxf3 {[%clk 0:00:07]} 42. Kxf3 {[%clk 0:00:24]}  Ra7 {[%clk 0:00:07]} 43. a4 {[%clk 0:00:24]}  Kg6 {[%clk 0:00:08]} 44. Ne3 {[%clk 0:00:24]}  Rb7 {[%clk 0:00:08]} 45. b4 {[%clk 0:00:24]}  Rc7 {[%clk 0:00:08]} 46. a5 {[%clk 0:00:25]}  Rc3 {[%clk 0:00:09]} 47. Rc4 {[%clk 0:00:25]}  Ra3 {[%clk 0:00:10]} 48. Ke4 {[%clk 0:00:26]}  Kf6 {[%clk 0:00:10]} 49. Nd5+ {[%clk 0:00:26]}  Ke6 {[%clk 0:00:10]} 50. Nc3 {[%clk 0:00:27]}  Kd6 {[%clk 0:00:10]} 51. Kd4 {[%clk 0:00:27]}  Kd7 {[%clk 0:00:10]} 52. Ne4 {[%clk 0:00:27]}  Ra1 {[%clk 0:00:11]} 53. Nc5+ {[%clk 0:00:28]}  Kc6 {[%clk 0:00:11]} 54. Ne4+ {[%clk 0:00:29]}  Kb5 {[%clk 0:00:11]} 55. Rc5+ {[%clk 0:00:30]}  Kxb4 {[%clk 0:00:12]} 56. Rxh5 {[%clk 0:00:30]}  Rd1+ {[%clk 0:00:11]} 57. Ke3 {[%clk 0:00:31]}  Rf1 {[%clk 0:00:11]} 58. Rg5 {[%clk 0:00:30]}  Rh1 {[%clk 0:00:11]} 59. h5 {[%clk 0:00:31]}  Rh3+ {[%clk 0:00:10]} 60. Kf4 {[%clk 0:00:31]}  Rh1 {[%clk 0:00:11]} 61. Ng3 {[%clk 0:00:30]}  Rh4+ {[%clk 0:00:09]} 62. Kf3 {[%clk 0:00:30]}  Rh3 {[%clk 0:00:09]} 63. Kg2 {[%clk 0:00:30]}  Rh4 {[%clk 0:00:09]} 64. Nf5 {[%clk 0:00:29]}  Rc4 {[%clk 0:00:08]} 65. h6 {[%clk 0:00:28]}  Rc2+ {[%clk 0:00:07]} 66. Kh3 {[%clk 0:00:28]}  Rc8 {[%clk 0:00:08]} 67. Nd6 {[%clk 0:00:25]}  Rh8 {[%clk 0:00:05]} 68. Nf7 {[%clk 0:00:25]}  Rf8 {[%clk 0:00:04]} 69. h7 {[%clk 0:00:25]}  Rxf7 {[%clk 0:00:03]} 70. h8=Q {[%clk 0:00:25]} 1-0


[Site "https://www.chess.com"]

[Event "Titled Tuesday Blitz February 01 B 2022"]
[White "Ronka, Erik"]
[Black "Golubka, Petro"]
[WhiteFideId "505080"]
[BlackFideId "14114224"]
[WhiteElo "2264"]
[BlackElo "2392"]
[Result "1/2-1/2"]
[Round "08"]
[TimeControl "180+1"]
[Date "2022.02.01"]
[WhiteClock "0:00:08"]
[BlackClock "0:00:49"]

1. d4 {[%clk 0:03:00]}  g6 {[%clk 0:02:53]} 2. Nf3 {[%clk 0:03:01]}  Bg7 {[%clk 0:02:53]} 3. g3 {[%clk 0:03:02]}  d6 {[%clk 0:02:53]} 4. Bg2 {[%clk 0:03:02]}  Nf6 {[%clk 0:02:54]} 5. O-O {[%clk 0:03:03]}  O-O {[%clk 0:02:54]} 6. b3 {[%clk 0:03:03]}  Nbd7 {[%clk 0:02:54]} 7. Bb2 {[%clk 0:03:04]}  c6 {[%clk 0:02:55]} 8. Re1 {[%clk 0:03:00]}  a5 {[%clk 0:02:56]} 9. a4 {[%clk 0:02:57]}  Ne4 {[%clk 0:02:55]} 10. Nbd2 {[%clk 0:02:52]}  f5 {[%clk 0:02:56]} 11. Nxe4 {[%clk 0:02:44]}  fxe4 {[%clk 0:02:57]} 12. Ng5 {[%clk 0:02:45]}  e3 {[%clk 0:02:57]} 13. f4 {[%clk 0:02:39]}  Nf6 {[%clk 0:02:56]} 14. Qd3 {[%clk 0:02:33]}  Ng4 {[%clk 0:02:56]} 15. h3 {[%clk 0:02:17]}  Bf5 {[%clk 0:02:48]} 16. Qc3 {[%clk 0:02:10]}  Nf6 {[%clk 0:02:47]} 17. Qxe3 {[%clk 0:02:09]}  Qd7 {[%clk 0:02:47]} 18. g4 {[%clk 0:02:07]}  Nxg4 {[%clk 0:02:46]} 19. hxg4 {[%clk 0:02:06]}  Bxg4 {[%clk 0:02:47]} 20. Qg3 {[%clk 0:01:52]}  h6 {[%clk 0:02:44]} 21. Nf3 {[%clk 0:01:50]}  Kh7 {[%clk 0:02:42]} 22. c4 {[%clk 0:01:46]}  Rf7 {[%clk 0:02:41]} 23. e3 {[%clk 0:01:45]}  Raf8 {[%clk 0:02:39]} 24. Nh2 {[%clk 0:01:40]}  Bh5 {[%clk 0:02:37]} 25. Rf1 {[%clk 0:01:36]}  b5 {[%clk 0:02:35]} 26. axb5 {[%clk 0:01:34]}  cxb5 {[%clk 0:02:36]} 27. Rxa5 {[%clk 0:01:32]}  bxc4 {[%clk 0:02:35]} 28. bxc4 {[%clk 0:01:18]}  Qc7 {[%clk 0:02:34]} 29. Rxh5 {[%clk 0:01:06]}  gxh5 {[%clk 0:02:34]} 30. Be4+ {[%clk 0:01:06]}  Kg8 {[%clk 0:02:34]} 31. Bd5 {[%clk 0:01:06]}  Qb6 {[%clk 0:02:25]} 32. Rf2 {[%clk 0:00:59]}  Kh8 {[%clk 0:02:24]} 33. Bxf7 {[%clk 0:00:59]}  Rxf7 {[%clk 0:02:24]} 34. Nf3 {[%clk 0:00:59]}  Bf6 {[%clk 0:02:22]} 35. Kh2 {[%clk 0:00:58]}  Rg7 {[%clk 0:02:23]} 36. Qh3 {[%clk 0:00:57]}  Qb3 {[%clk 0:02:22]} 37. e4 {[%clk 0:00:39]}  Qe3 {[%clk 0:02:21]} 38. Rg2 {[%clk 0:00:31]}  Qxf4+ {[%clk 0:02:16]} 39. Kh1 {[%clk 0:00:31]}  Qxe4 {[%clk 0:02:06]} 40. Rxg7 {[%clk 0:00:30]}  Kxg7 {[%clk 0:02:06]} 41. Qg3+ {[%clk 0:00:29]}  Kf7 {[%clk 0:02:04]} 42. Qg2 {[%clk 0:00:28]}  Qd3 {[%clk 0:01:56]} 43. Kh2 {[%clk 0:00:18]}  Qxc4 {[%clk 0:01:54]} 44. Qf2 {[%clk 0:00:14]}  Ke8 {[%clk 0:01:44]} 45. Qd2 {[%clk 0:00:12]}  Qd5 {[%clk 0:01:42]} 46. Kg3 {[%clk 0:00:10]}  Qg8+ {[%clk 0:01:40]} 47. Kh2 {[%clk 0:00:10]}  Qg4 {[%clk 0:01:40]} 48. Qg2 {[%clk 0:00:08]}  Kf7 {[%clk 0:01:37]} 49. Bc1 {[%clk 0:00:08]}  Kg6 {[%clk 0:01:34]} 50. Be3 {[%clk 0:00:08]}  Kf5 {[%clk 0:01:33]} 51. Qc2+ {[%clk 0:00:07]}  Qe4 {[%clk 0:01:29]} 52. Qf2 {[%clk 0:00:08]}  Ke6 {[%clk 0:01:21]} 53. Nd2 {[%clk 0:00:08]}  Qg4 {[%clk 0:01:18]} 54. Nf3 {[%clk 0:00:08]}  h4 {[%clk 0:01:08]} 55. Bxh6 {[%clk 0:00:08]}  h3 {[%clk 0:01:04]} 56. Qe2+ {[%clk 0:00:08]}  Kf5 {[%clk 0:01:01]} 57. Qf2 {[%clk 0:00:08]}  Kg6 {[%clk 0:00:59]} 58. Be3 {[%clk 0:00:08]}  Kh5 {[%clk 0:00:59]} 59. Qg3 {[%clk 0:00:08]}  e5 {[%clk 0:00:51]} 60. dxe5 {[%clk 0:00:06]}  Bxe5 {[%clk 0:00:48]} 61. Nxe5 {[%clk 0:00:06]}  Qxg3+ {[%clk 0:00:48]} 62. Kxg3 {[%clk 0:00:06]}  dxe5 {[%clk 0:00:48]} 63. Kxh3 {[%clk 0:00:07]}  e4 {[%clk 0:00:49]} 64. Kg3 {[%clk 0:00:07]}  Kg6 {[%clk 0:00:48]} 65. Kf4 {[%clk 0:00:08]}  Kf7 {[%clk 0:00:49]} 66. Kxe4 {[%clk 0:00:08]} 1/2-1/2


[Site "https://www.chess.com"]

[Event "Titled Tuesday Blitz February 01 B 2022"]
[White "Timofeev, Artyom"]
[Black "Xiong, Jeffery"]
[WhiteFideId "4140419"]
[BlackFideId "2047640"]
[WhiteElo "2583"]
[BlackElo "2727"]
[Result "1-0"]
[Round "08"]
[TimeControl "180+1"]
[Date "2022.02.01"]
[WhiteClock "0:00:17"]
[BlackClock "0:00:01"]

1. d4 {[%clk 0:03:00]}  Nf6 {[%clk 0:02:56]} 2. Nf3 {[%clk 0:03:01]}  d5 {[%clk 0:02:56]} 3. c4 {[%clk 0:02:59]}  e6 {[%clk 0:02:56]} 4. Nc3 {[%clk 0:02:59]}  dxc4 {[%clk 0:02:56]} 5. Bg5 {[%clk 0:02:57]}  a6 {[%clk 0:02:52]} 6. a4 {[%clk 0:02:53]}  c5 {[%clk 0:02:42]} 7. e3 {[%clk 0:02:51]}  Nc6 {[%clk 0:02:34]} 8. Bxc4 {[%clk 0:02:49]}  cxd4 {[%clk 0:02:32]} 9. exd4 {[%clk 0:02:43]}  Be7 {[%clk 0:02:33]} 10. O-O {[%clk 0:02:43]}  O-O {[%clk 0:02:33]} 11. Re1 {[%clk 0:02:43]}  Bd7 {[%clk 0:02:33]} 12. Bxf6 {[%clk 0:02:28]}  Bxf6 {[%clk 0:02:33]} 13. d5 {[%clk 0:02:28]}  Bxc3 {[%clk 0:02:06]} 14. bxc3 {[%clk 0:02:23]}  exd5 {[%clk 0:02:07]} 15. Bxd5 {[%clk 0:02:22]}  Qf6 {[%clk 0:02:04]} 16. Qb3 {[%clk 0:02:19]}  Rab8 {[%clk 0:01:50]} 17. a5 {[%clk 0:02:16]}  Rfd8 {[%clk 0:01:35]} 18. h3 {[%clk 0:02:11]}  h6 {[%clk 0:01:29]} 19. c4 {[%clk 0:01:50]}  Re8 {[%clk 0:01:22]} 20. Qb6 {[%clk 0:01:42]}  Rxe1+ {[%clk 0:01:18]} 21. Rxe1 {[%clk 0:01:42]}  Qd8 {[%clk 0:01:19]} 22. Ne5 {[%clk 0:01:23]}  Be8 {[%clk 0:00:43]} 23. Bxc6 {[%clk 0:01:14]}  bxc6 {[%clk 0:00:42]} 24. Qxd8 {[%clk 0:01:13]}  Rxd8 {[%clk 0:00:43]} 25. Rb1 {[%clk 0:01:11]}  f6 {[%clk 0:00:42]} 26. Ng4 {[%clk 0:01:08]}  f5 {[%clk 0:00:12]} 27. Ne5 {[%clk 0:01:04]}  Rd4 {[%clk 0:00:05]} 28. Rb6 {[%clk 0:00:37]}  Re4 {[%clk 0:00:05]} 29. f4 {[%clk 0:00:35]}  Rxf4 {[%clk 0:00:05]} 30. Rb8 {[%clk 0:00:35]}  Re4 {[%clk 0:00:01]} 31. Rxe8+ {[%clk 0:00:35]}  Kh7 {[%clk 0:00:02]} 32. Re7 {[%clk 0:00:34]}  c5 {[%clk 0:00:03]} 33. Kf2 {[%clk 0:00:28]}  h5 {[%clk 0:00:04]} 34. h4 {[%clk 0:00:25]}  Rxh4 {[%clk 0:00:01]} 35. Rc7 {[%clk 0:00:25]}  Re4 {[%clk 0:00:01]} 36. Rxc5 {[%clk 0:00:24]}  h4 {[%clk 0:00:01]} 37. Nf3 {[%clk 0:00:22]}  Kg6 {[%clk 0:00:02]} 38. Rc6+ {[%clk 0:00:21]}  Kh5 {[%clk 0:00:03]} 39. Rc8 {[%clk 0:00:18]}  Kg4 {[%clk 0:00:01]} 40. c5 {[%clk 0:00:17]}  Rf4 {[%clk 0:00:01]} 1-0


[Site "https://www.chess.com"]

[Event "Titled Tuesday Blitz February 01 B 2022"]
[White "Yoo, Christopher Woojin"]
[Black "Deac, Bogdan-Daniel"]
[WhiteFideId "30909694"]
[BlackFideId "1226380"]
[WhiteElo "2105"]
[BlackElo "2646"]
[Result "0-1"]
[Round "08"]
[TimeControl "180+1"]
[Date "2022.02.01"]
[WhiteClock "0:00:01"]
[BlackClock "0:00:04"]

1. e4 {[%clk 0:03:00]}  c5 {[%clk 0:02:57]} 2. Nf3 {[%clk 0:02:59]}  Nc6 {[%clk 0:02:57]} 3. Nc3 {[%clk 0:02:55]}  g6 {[%clk 0:02:54]} 4. Bb5 {[%clk 0:02:54]}  Bg7 {[%clk 0:02:54]} 5. O-O {[%clk 0:02:55]}  Nh6 {[%clk 0:02:54]} 6. d3 {[%clk 0:02:52]}  O-O {[%clk 0:02:53]} 7. h3 {[%clk 0:02:46]}  d6 {[%clk 0:02:47]} 8. Be3 {[%clk 0:02:39]}  f5 {[%clk 0:02:31]} 9. Qd2 {[%clk 0:01:56]}  Nf7 {[%clk 0:02:03]} 10. Bc4 {[%clk 0:01:51]}  Na5 {[%clk 0:01:45]} 11. Bxf7+ {[%clk 0:01:35]}  Rxf7 {[%clk 0:01:46]} 12. Bh6 {[%clk 0:01:35]}  fxe4 {[%clk 0:01:32]} 13. Nxe4 {[%clk 0:01:30]}  Rxf3 {[%clk 0:01:30]} 14. Bxg7 {[%clk 0:01:22]}  Kxg7 {[%clk 0:01:29]} 15. gxf3 {[%clk 0:01:21]}  Nc6 {[%clk 0:01:20]} 16. Kg2 {[%clk 0:01:04]}  Qf8 {[%clk 0:01:19]} 17. c3 {[%clk 0:00:51]}  Bd7 {[%clk 0:00:58]} 18. Qe3 {[%clk 0:00:49]}  Qf5 {[%clk 0:00:52]} 19. Rh1 {[%clk 0:00:48]}  Rf8 {[%clk 0:00:53]} 20. Ng3 {[%clk 0:00:21]}  Qd5 {[%clk 0:00:49]} 21. Qe4 {[%clk 0:00:19]}  Qf7 {[%clk 0:00:48]} 22. d4 {[%clk 0:00:06]}  cxd4 {[%clk 0:00:41]} 23. cxd4 {[%clk 0:00:05]}  Be6 {[%clk 0:00:38]} 24. Kh2 {[%clk 0:00:03]}  Bd5 {[%clk 0:00:37]} 25. Qe3 {[%clk 0:00:04]}  Bxf3 {[%clk 0:00:36]} 26. Rhg1 {[%clk 0:00:04]}  Bd5 {[%clk 0:00:30]} 27. f4 {[%clk 0:00:03]}  Kh8 {[%clk 0:00:20]} 28. Raf1 {[%clk 0:00:04]}  e6 {[%clk 0:00:20]} 29. Ne4 {[%clk 0:00:02]}  Qe7 {[%clk 0:00:15]} 30. Ng5 {[%clk 0:00:02]}  Rf5 {[%clk 0:00:15]} 31. h4 {[%clk 0:00:03]}  Qf6 {[%clk 0:00:15]} 32. Rg4 {[%clk 0:00:02]}  h6 {[%clk 0:00:13]} 33. Ne4 {[%clk 0:00:02]}  Qe7 {[%clk 0:00:11]} 34. Ng3 {[%clk 0:00:03]}  Rf8 {[%clk 0:00:10]} 35. h5 {[%clk 0:00:03]}  gxh5 {[%clk 0:00:08]} 36. Nxh5 {[%clk 0:00:04]}  Rf5 {[%clk 0:00:07]} 37. Ng3 {[%clk 0:00:03]}  Rf6 {[%clk 0:00:07]} 38. Nh5 {[%clk 0:00:03]}  Rf5 {[%clk 0:00:07]} 39. Ng3 {[%clk 0:00:04]}  Rf8 {[%clk 0:00:08]} 40. f5 {[%clk 0:00:04]}  Qh7 {[%clk 0:00:07]} 41. fxe6 {[%clk 0:00:03]}  Qc2+ {[%clk 0:00:06]} 42. Qe2 {[%clk 0:00:02]}  Qxe2+ {[%clk 0:00:06]} 43. Nxe2 {[%clk 0:00:03]}  Rxf1 {[%clk 0:00:06]} 44. Nf4 {[%clk 0:00:04]}  Rh1+ {[%clk 0:00:03]} 45. Kg3 {[%clk 0:00:04]}  Rg1+ {[%clk 0:00:04]} 46. Kh4 {[%clk 0:00:04]}  Rh1+ {[%clk 0:00:03]} 47. Kg3 {[%clk 0:00:03]}  Rg1+ {[%clk 0:00:03]} 48. Kh4 {[%clk 0:00:04]}  Rxg4+ {[%clk 0:00:04]} 49. Kxg4 {[%clk 0:00:05]}  Bxe6+ {[%clk 0:00:04]} 50. Nxe6 {[%clk 0:00:05]}  Kg8 {[%clk 0:00:05]} 51. a3 {[%clk 0:00:01]}  Kf7 {[%clk 0:00:05]} 52. d5 {[%clk 0:00:01]}  Ne7 {[%clk 0:00:05]} 53. Nc7 {[%clk 0:00:02]}  a6 {[%clk 0:00:04]} 54. Kf4 {[%clk 0:00:02]}  Ng6+ {[%clk 0:00:04]} 55. Kf5 {[%clk 0:00:02]}  Ne5 {[%clk 0:00:04]} 56. Ne6 {[%clk 0:00:02]}  Ke7 {[%clk 0:00:04]} 57. Nd4 {[%clk 0:00:02]}  Nc4 {[%clk 0:00:04]} 58. b4 {[%clk 0:00:01]}  Nxa3 {[%clk 0:00:04]} 59. Ke4 {[%clk 0:00:01]}  Nc4 {[%clk 0:00:04]} 60. Nf5+ {[%clk 0:00:01]}  Kd7 {[%clk 0:00:04]} 61. Nxh6 {[%clk 0:00:02]}  Ne5 {[%clk 0:00:03]} 62. Nf5 {[%clk 0:00:03]}  Ng6 {[%clk 0:00:03]} 63. Nd4 {[%clk 0:00:03]}  Ne7 {[%clk 0:00:04]} 64. Ne6 {[%clk 0:00:03]}  Nc8 {[%clk 0:00:03]} 65. Nd4 {[%clk 0:00:04]}  b6 {[%clk 0:00:04]} 66. Nc6 {[%clk 0:00:04]}  Kc7 {[%clk 0:00:04]} 67. Kf5 {[%clk 0:00:03]}  b5 {[%clk 0:00:04]} 68. Ke6 {[%clk 0:00:03]}  Nb6 {[%clk 0:00:05]} 69. Nd4 {[%clk 0:00:03]}  Nc4 {[%clk 0:00:04]} 70. Nf5 {[%clk 0:00:03]}  a5 {[%clk 0:00:03]} 71. bxa5 {[%clk 0:00:04]}  b4 {[%clk 0:00:03]} 72. Nd4 {[%clk 0:00:03]}  Kb7 {[%clk 0:00:02]} 73. Kd7 {[%clk 0:00:02]}  Ka6 {[%clk 0:00:01]} 74. Nb3 {[%clk 0:00:02]}  Nxa5 {[%clk 0:00:01]} 75. Nd4 {[%clk 0:00:01]}  Nc4 {[%clk 0:00:01]} 76. Kc6 {[%clk 0:00:02]}  Ka5 {[%clk 0:00:01]} 77. Nb3+ {[%clk 0:00:01]}  Ka4 {[%clk 0:00:01]} 78. Nd4 {[%clk 0:00:01]}  b3 {[%clk 0:00:02]} 79. Ne2 {[%clk 0:00:01]}  Kb4 {[%clk 0:00:02]} 80. Nf4 {[%clk 0:00:01]}  b2 {[%clk 0:00:02]} 81. Nd3+ {[%clk 0:00:01]}  Kc3 {[%clk 0:00:02]} 82. Nxb2 {[%clk 0:00:02]}  Kxb2 {[%clk 0:00:03]} 83. Kb5 {[%clk 0:00:01]}  Kc3 {[%clk 0:00:04]} 0-1


[Site "https://www.chess.com"]